[Event "*** Titled Tuesday Blitz"]
[Site "Chess.com"]
[Date "2020.10.27"]
[Round "9"]
[White "TheChessChannel"]
[Black "sokidze"]
[Result "0-1"]
[WhiteElo "2436"]
[BlackElo "2609"]
[TimeControl "180+1"]
[EndTime "11:45:58 PDT"]
[Termination "sokidze won by checkmate"]

1. c4 {[%clk 0:03:00.9]} 1... c5 {[%clk 0:02:59.5]} 2. g3 {[%clk 0:03:01.2]}
2... Nc6 {[%clk 0:02:59.1]} 3. Bg2 {[%clk 0:03:01.2]} 3... e5 {[%clk 0:02:57.7]}
4. Nc3 {[%clk 0:02:58.9]} 4... g6 {[%clk 0:02:57.5]} 5. d3 {[%clk 0:02:57]} 5...
Bg7 {[%clk 0:02:57.7]} 6. Nf3 {[%clk 0:02:55.5]} 6... Nge7 {[%clk 0:02:57.3]} 7.
Bg5 {[%clk 0:02:54.3]} 7... h6 {[%clk 0:02:49.6]} 8. Bd2 {[%clk 0:02:53]} 8...
O-O {[%clk 0:02:45.4]} 9. Qc1 {[%clk 0:02:52.3]} 9... Kh7 {[%clk 0:02:44.3]} 10.
h4 {[%clk 0:02:49.2]} 10... h5 {[%clk 0:02:16.4]} 11. Nb5 {[%clk 0:02:43.5]}
11... d6 {[%clk 0:02:12.2]} 12. Ng5+ {[%clk 0:02:35.6]} 12... Kg8 {[%clk
0:02:11.4]} 13. Ne4 {[%clk 0:02:28.3]} 13... Nf5 {[%clk 0:02:09.5]} 14. Bh3
{[%clk 0:02:24.4]} 14... a6 {[%clk 0:01:59.7]} 15. Nbc3 {[%clk 0:02:13.7]} 15...
Nfe7 {[%clk 0:01:57.2]} 16. Bxc8 {[%clk 0:02:08.4]} 16... Rxc8 {[%clk
0:01:58.1]} 17. g4 {[%clk 0:02:02.1]} 17... hxg4 {[%clk 0:01:15.2]} 18. h5
{[%clk 0:02:03]} 18... f5 {[%clk 0:00:40.3]} 19. h6 {[%clk 0:02:02.9]} 19... Bh8
{[%clk 0:00:24.5]} 20. h7+ {[%clk 0:02:02.3]} 20... Kf7 {[%clk 0:00:24.3]} 21.
Ng5+ {[%clk 0:01:59.4]} 21... Kf6 {[%clk 0:00:24.8]} 22. Kf1 {[%clk 0:01:44.5]}
22... d5 {[%clk 0:00:24.7]} 23. cxd5 {[%clk 0:01:41.6]} 23... Nxd5 {[%clk
0:00:25.6]} 24. Nge4+ {[%clk 0:01:37.6]} 24... Kf7 {[%clk 0:00:20.7]} 25. Nxd5
{[%clk 0:01:37.3]} 25... Qxd5 {[%clk 0:00:20.1]} 26. Qxc5 {[%clk 0:01:35.2]}
26... Qxc5 {[%clk 0:00:13.3]} 27. Nxc5 {[%clk 0:01:36.1]} 27... Rc7 {[%clk
0:00:12.4]} 28. Rc1 {[%clk 0:01:34.8]} 28... Rfc8 {[%clk 0:00:11.4]} 29. Nb3
{[%clk 0:01:33.9]} 29... Ke6 {[%clk 0:00:06.6]} 30. Kg2 {[%clk 0:01:33.9]} 30...
Nd8 {[%clk 0:00:04.6]} 31. Rxc7 {[%clk 0:01:33.2]} 31... Rxc7 {[%clk 0:00:05.5]}
32. Rc1 {[%clk 0:01:33.2]} 32... Rxc1 {[%clk 0:00:05.1]} 33. Bxc1 {[%clk
0:01:34.1]} 33... Kf7 {[%clk 0:00:05.5]} 34. d4 {[%clk 0:01:31.5]} 34... exd4
{[%clk 0:00:05.3]} 35. Bf4 {[%clk 0:01:31.2]} 35... Nc6 {[%clk 0:00:04.7]} 36.
Nc5 {[%clk 0:01:30]} 36... b6 {[%clk 0:00:03.7]} 37. Nxa6 {[%clk 0:01:30.1]}
37... Kg7 {[%clk 0:00:04.2]} 38. a3 {[%clk 0:01:27.9]} 38... Kxh7 {[%clk
0:00:04.2]} 39. b4 {[%clk 0:01:28.8]} 39... Bf6 {[%clk 0:00:02.1]} 40. b5 {[%clk
0:01:29]} 40... Na5 {[%clk 0:00:02.5]} 41. Bc7 {[%clk 0:01:29]} 41... Nc4 {[%clk
0:00:02.8]} 42. a4 {[%clk 0:01:28.3]} 42... Be5 {[%clk 0:00:03.4]} 43. Bxe5
{[%clk 0:01:25.8]} 43... Nxe5 {[%clk 0:00:04.3]} 44. Nb4 {[%clk 0:01:24.7]}
44... Kg7 {[%clk 0:00:04.2]} 45. Nd5 {[%clk 0:01:24.8]} 45... Nc4 {[%clk
0:00:04.8]} 46. Kf1 {[%clk 0:01:22.8]} 46... Kf7 {[%clk 0:00:04.6]} 47. Ke1
{[%clk 0:01:23.1]} 47... Ke6 {[%clk 0:00:05]} 48. Nb4 {[%clk 0:01:22.1]} 48...
Kd6 {[%clk 0:00:05.1]} 49. Nd3 {[%clk 0:01:22.7]} 49... Kd5 {[%clk 0:00:05.1]}
50. Kd1 {[%clk 0:01:22.4]} 50... g5 {[%clk 0:00:04.8]} 51. Kc2 {[%clk
0:01:22.4]} 51... f4 {[%clk 0:00:04.8]} 52. Nb4+ {[%clk 0:01:22.7]} 52... Kc5
{[%clk 0:00:04.8]} 53. Nc6 {[%clk 0:01:23.6]} 53... g3 {[%clk 0:00:04.3]} 54. f3
{[%clk 0:01:22.1]} 54... g2 {[%clk 0:00:04.5]} 55. Ne5 {[%clk 0:01:17.5]} 55...
g1=Q {[%clk 0:00:04.6]} 56. Nd3+ {[%clk 0:01:18.4]} 56... Kd6 {[%clk 0:00:04.8]}
57. Kb3 {[%clk 0:01:17.1]} 57... Nd2+ {[%clk 0:00:04.7]} 58. Kc2 {[%clk
0:01:16.6]} 58... Qe3 {[%clk 0:00:05.6]} 59. Kd1 {[%clk 0:01:13.5]} 59... Nc4
{[%clk 0:00:05.6]} 60. Kc2 {[%clk 0:01:12]} 60... Qd2+ {[%clk 0:00:05.8]} 61.
Kb3 {[%clk 0:01:12.9]} 61... Ne3 {[%clk 0:00:06.2]} 62. a5 {[%clk 0:01:12.7]}
62... Qc3+ {[%clk 0:00:06.2]} 63. Ka4 {[%clk 0:01:08.7]} 63... Qxa5+ {[%clk
0:00:06.6]} 64. Kb3 {[%clk 0:01:08.6]} 64... Qxb5+ {[%clk 0:00:07.1]} 65. Ka3
{[%clk 0:01:06.5]} 65... Nc4+ {[%clk 0:00:05.3]} 66. Ka2 {[%clk 0:01:05]} 66...
Qa4+ {[%clk 0:00:05.9]} 67. Kb1 {[%clk 0:01:04.3]} 67... Qb3+ {[%clk 0:00:06.4]}
68. Kc1 {[%clk 0:01:03]} 68... Ne3 {[%clk 0:00:05.9]} 69. Kd2 {[%clk 0:01:02]}
69... Qc2+ {[%clk 0:00:06.1]} 70. Ke1 {[%clk 0:01:02.9]} 70... Qd1+ {[%clk
0:00:06.4]} 71. Kf2 {[%clk 0:01:03.2]} 71... Qf1# {[%clk 0:00:07.1]} 0-1

[Event "*** Titled Tuesday Blitz"]
[Site "Chess.com"]
[Date "2020.10.27"]
[Round "9"]
[White "GOGIEFF"]
[Black "Jumbo"]
[Result "0-1"]
[WhiteElo "2897"]
[BlackElo "2887"]
[TimeControl "180+1"]
[EndTime "11:46:01 PDT"]
[Termination "Jumbo won by resignation"]

1. d4 {[%clk 0:03:00.9]} 1... d5 {[%clk 0:03:00.5]} 2. c4 {[%clk 0:03:00.9]}
2... e6 {[%clk 0:03:01.1]} 3. Nc3 {[%clk 0:03:00.2]} 3... Nf6 {[%clk 0:03:01.6]}
4. cxd5 {[%clk 0:03:00]} 4... exd5 {[%clk 0:03:02.5]} 5. Bg5 {[%clk 0:02:59.1]}
5... Be7 {[%clk 0:03:02]} 6. e3 {[%clk 0:02:59.4]} 6... c6 {[%clk 0:03:02.3]} 7.
Qc2 {[%clk 0:02:57]} 7... Nbd7 {[%clk 0:02:58]} 8. Bd3 {[%clk 0:02:56.3]} 8...
O-O {[%clk 0:02:57.1]} 9. Nf3 {[%clk 0:02:53.5]} 9... Re8 {[%clk 0:02:46.4]} 10.
O-O {[%clk 0:02:53.1]} 10... Nf8 {[%clk 0:02:09.9]} 11. h3 {[%clk 0:02:52.5]}
11... g6 {[%clk 0:02:08.3]} 12. Rae1 {[%clk 0:02:47.8]} 12... Ne6 {[%clk
0:02:05.9]} 13. Bh6 {[%clk 0:02:48]} 13... Ng7 {[%clk 0:02:03.8]} 14. g4 {[%clk
0:02:48.3]} 14... Bd6 {[%clk 0:01:58.9]} 15. Ne5 {[%clk 0:02:35]} 15... Bxe5
{[%clk 0:01:42.1]} 16. dxe5 {[%clk 0:02:35.9]} 16... Rxe5 {[%clk 0:01:42.4]} 17.
f4 {[%clk 0:02:36]} 17... Re8 {[%clk 0:01:42.8]} 18. f5 {[%clk 0:02:23.4]} 18...
gxf5 {[%clk 0:01:33.9]} 19. gxf5 {[%clk 0:02:22.7]} 19... Kh8 {[%clk 0:01:33.6]}
20. Qf2 {[%clk 0:02:14.3]} 20... Rg8 {[%clk 0:01:18.2]} 21. Kh1 {[%clk
0:02:14.3]} 21... Ngh5 {[%clk 0:01:03.7]} 22. Rg1 {[%clk 0:02:11.2]} 22... Qd6
{[%clk 0:01:01.3]} 23. Rxg8+ {[%clk 0:01:33.9]} 23... Nxg8 {[%clk 0:01:02.2]}
24. Bg5 {[%clk 0:01:33.9]} 24... Qg3 {[%clk 0:00:43.2]} 25. Qxg3 {[%clk
0:01:05.8]} 25... Nxg3+ {[%clk 0:00:42.7]} 26. Kh2 {[%clk 0:01:05.6]} 26... Bxf5
{[%clk 0:00:34.9]} 27. Ba6 {[%clk 0:01:04.9]} 27... bxa6 {[%clk 0:00:32.2]} 28.
Kxg3 {[%clk 0:01:05.3]} 28... f6 {[%clk 0:00:29.7]} 29. Bh4 {[%clk 0:01:05.5]}
29... Kg7 {[%clk 0:00:29]} 30. e4 {[%clk 0:01:00]} 30... dxe4 {[%clk 0:00:26.7]}
31. Nxe4 {[%clk 0:00:58.6]} 31... Re8 {[%clk 0:00:19.7]} 32. Kf4 {[%clk
0:00:58.8]} 32... Bxe4 {[%clk 0:00:18.5]} 33. Rxe4 {[%clk 0:00:58.9]} 33...
Rxe4+ {[%clk 0:00:18.9]} 34. Kxe4 {[%clk 0:00:59]} 34... Kf7 {[%clk 0:00:19.5]}
35. Bf2 {[%clk 0:00:58]} 35... Ke6 {[%clk 0:00:19.5]} 36. Bxa7 {[%clk
0:00:57.9]} 36... Ne7 {[%clk 0:00:18.6]} 37. Kd4 {[%clk 0:00:57.5]} 37... Nd5
{[%clk 0:00:18.4]} 38. Kc5 {[%clk 0:00:54.1]} 38... Kd7 {[%clk 0:00:18.1]} 39.
Bb8 {[%clk 0:00:54.4]} 39... f5 {[%clk 0:00:17.4]} 40. Kd4 {[%clk 0:00:54.5]}
40... Ke6 {[%clk 0:00:17.1]} 41. Kc5 {[%clk 0:00:54.8]} 41... f4 {[%clk
0:00:15.6]} 42. Kxc6 {[%clk 0:00:48.3]} 42... f3 {[%clk 0:00:15.1]} 43. Bg3
{[%clk 0:00:48.3]} 43... Nb4+ {[%clk 0:00:15.1]} 44. Kb6 {[%clk 0:00:48.7]}
44... Nxa2 {[%clk 0:00:15.4]} 45. Kxa6 {[%clk 0:00:49]} 45... Kd5 {[%clk
0:00:15.1]} 46. Kb5 {[%clk 0:00:48.3]} 46... Nc1 {[%clk 0:00:15.3]} 47. b4
{[%clk 0:00:42.2]} 47... Nd3 {[%clk 0:00:15.5]} 48. Ka5 {[%clk 0:00:42.7]} 48...
f2 {[%clk 0:00:15.4]} 49. Bxf2 {[%clk 0:00:42.6]} 49... Nxf2 {[%clk 0:00:16.3]}
50. b5 {[%clk 0:00:43.4]} 50... Ne4 {[%clk 0:00:06.2]} 51. b6 {[%clk 0:00:43.5]}
51... Nd6 {[%clk 0:00:06.3]} 52. h4 {[%clk 0:00:41.4]} 52... Kc6 {[%clk
0:00:06]} 53. Ka6 {[%clk 0:00:41]} 53... h5 {[%clk 0:00:05.4]} 54. Ka7 {[%clk
0:00:40.9]} 54... Nc8+ {[%clk 0:00:05.3]} 55. Ka6 {[%clk 0:00:38.9]} 55... Nxb6
{[%clk 0:00:05.3]} 0-1

[Event "*** Titled Tuesday Blitz"]
[Site "Chess.com"]
[Date "2020.10.27"]
[Round "9"]
[White "bascheyaro"]
[Black "wonderfultime"]
[Result "0-1"]
[WhiteElo "2738"]
[BlackElo "2926"]
[TimeControl "180+1"]
[EndTime "11:46:01 PDT"]
[Termination "wonderfultime won on time"]

1. d4 {[%clk 0:03:00.9]} 1... d5 {[%clk 0:02:58.6]} 2. c4 {[%clk 0:03:00.9]}
2... c6 {[%clk 0:02:59.2]} 3. Nc3 {[%clk 0:03:00.9]} 3... Nf6 {[%clk 0:02:59.7]}
4. cxd5 {[%clk 0:03:00.9]} 4... cxd5 {[%clk 0:03:00.6]} 5. Bf4 {[%clk
0:03:01.1]} 5... Nc6 {[%clk 0:03:00.7]} 6. e3 {[%clk 0:03:01.6]} 6... a6 {[%clk
0:03:01.2]} 7. Nf3 {[%clk 0:03:01.7]} 7... Bg4 {[%clk 0:03:01.7]} 8. Rc1 {[%clk
0:03:00.5]} 8... Rc8 {[%clk 0:03:01.9]} 9. Be2 {[%clk 0:02:59.5]} 9... e6 {[%clk
0:03:01.4]} 10. O-O {[%clk 0:02:55.1]} 10... Bxf3 {[%clk 0:03:01.4]} 11. Bxf3
{[%clk 0:02:55.1]} 11... Bd6 {[%clk 0:03:02]} 12. Bxd6 {[%clk 0:02:43]} 12...
Qxd6 {[%clk 0:03:02.9]} 13. e4 {[%clk 0:02:43.6]} 13... dxe4 {[%clk 0:02:45]}
14. Nxe4 {[%clk 0:02:44.5]} 14... Nxe4 {[%clk 0:02:45.4]} 15. Bxe4 {[%clk
0:02:44.8]} 15... O-O {[%clk 0:02:46.3]} 16. d5 {[%clk 0:02:45.1]} 16... exd5
{[%clk 0:02:45.9]} 17. Qxd5 {[%clk 0:02:44]} 17... Qb4 {[%clk 0:02:44.7]} 18.
Rc4 {[%clk 0:02:38]} 18... Qxb2 {[%clk 0:02:41.6]} 19. Bxh7+ {[%clk 0:02:37.5]}
19... Kxh7 {[%clk 0:02:23.9]} 20. Qh5+ {[%clk 0:02:14.2]} 20... Kg8 {[%clk
0:02:24]} 21. Rh4 {[%clk 0:02:13.2]} 21... f6 {[%clk 0:01:48.2]} 22. Qh7+ {[%clk
0:02:08.2]} 22... Kf7 {[%clk 0:01:47.1]} 23. Qh5+ {[%clk 0:01:39.9]} 23... Ke7
{[%clk 0:01:43.6]} 24. Qg6 {[%clk 0:00:49.8]} 24... Ne5 {[%clk 0:01:42.5]} 25.
Qxg7+ {[%clk 0:00:44.1]} 25... Rf7 {[%clk 0:01:42.7]} 26. Qh6 {[%clk 0:00:36]}
26... Qe2 {[%clk 0:01:30.4]} 27. Rh3 {[%clk 0:00:16.9]} 27... Rg8 {[%clk
0:00:43]} 28. Re3 {[%clk 0:00:16.5]} 28... Qc2 {[%clk 0:00:43.4]} 29. Qf4 {[%clk
0:00:14.8]} 29... Rfg7 {[%clk 0:00:40.6]} 30. g3 {[%clk 0:00:14.3]} 30... Rg4
{[%clk 0:00:40.6]} 31. Rxe5+ {[%clk 0:00:12.7]} 31... fxe5 {[%clk 0:00:40.8]}
32. Qxe5+ {[%clk 0:00:13.3]} 32... Kd7 {[%clk 0:00:40.9]} 33. Re1 {[%clk
0:00:08.4]} 33... R4g6 {[%clk 0:00:33.7]} 34. Qf4 {[%clk 0:00:06.7]} 34... Rg4
{[%clk 0:00:17.7]} 35. Qf3 {[%clk 0:00:02.4]} 35... Kc8 {[%clk 0:00:15.6]} 36.
Re7 {[%clk 0:00:02.6]} 36... Qc1+ {[%clk 0:00:15.7]} 37. Kg2 {[%clk 0:00:02.8]}
37... Qc6 {[%clk 0:00:16.6]} 38. Qxc6+ {[%clk 0:00:02.4]} 38... bxc6 {[%clk
0:00:17.5]} 39. h4 {[%clk 0:00:02.9]} 39... Rxh4 {[%clk 0:00:17.5]} 40. Re6
{[%clk 0:00:03.4]} 40... Rc4 {[%clk 0:00:16.9]} 41. f4 {[%clk 0:00:03.9]} 41...
Rxf4 {[%clk 0:00:16]} 42. Rxc6+ {[%clk 0:00:03.7]} 42... Kb7 {[%clk 0:00:16.7]}
43. Rc3 {[%clk 0:00:04.5]} 43... Ra4 {[%clk 0:00:16.9]} 44. a3 {[%clk
0:00:04.2]} 44... Rg5 {[%clk 0:00:16.3]} 45. Kh3 {[%clk 0:00:05.1]} 45... Rga5
{[%clk 0:00:16.6]} 46. Kg2 {[%clk 0:00:06]} 46... Rxa3 {[%clk 0:00:17]} 47. Kh3
{[%clk 0:00:06.9]} 47... Rxc3 {[%clk 0:00:17.3]} 0-1

[Event "*** Titled Tuesday Blitz"]
[Site "Chess.com"]
[Date "2020.10.27"]
[Round "9"]
[White "doons21"]
[Black "ChessQueen"]
[Result "0-1"]
[WhiteElo "2562"]
[BlackElo "2739"]
[TimeControl "180+1"]
[EndTime "11:46:03 PDT"]
[Termination "ChessQueen won by resignation"]

1. e4 {[%clk 0:03:00.9]} 1... c6 {[%clk 0:03:00]} 2. d3 {[%clk 0:02:59.4]} 2...
d5 {[%clk 0:03:00.2]} 3. Nd2 {[%clk 0:03:00.3]} 3... e5 {[%clk 0:02:58.4]} 4.
Ngf3 {[%clk 0:02:59.7]} 4... Bd6 {[%clk 0:02:53.3]} 5. g3 {[%clk 0:02:59.6]}
5... Ne7 {[%clk 0:02:52.5]} 6. Bg2 {[%clk 0:02:57.6]} 6... O-O {[%clk
0:02:52.5]} 7. O-O {[%clk 0:02:58.1]} 7... Nd7 {[%clk 0:02:51.8]} 8. Nh4 {[%clk
0:02:51.6]} 8... f5 {[%clk 0:02:46.9]} 9. Ndf3 {[%clk 0:02:18.3]} 9... Nf6
{[%clk 0:02:41.4]} 10. exf5 {[%clk 0:02:16.5]} 10... Nxf5 {[%clk 0:02:39.9]} 11.
Re1 {[%clk 0:02:15.1]} 11... e4 {[%clk 0:02:35.9]} 12. dxe4 {[%clk 0:02:07]}
12... Nxe4 {[%clk 0:02:36]} 13. Nxf5 {[%clk 0:02:02]} 13... Bxf5 {[%clk
0:02:36.9]} 14. Be3 {[%clk 0:02:02.5]} 14... Bg4 {[%clk 0:02:32.2]} 15. h3
{[%clk 0:02:02.2]} 15... Bh5 {[%clk 0:02:27.8]} 16. g4 {[%clk 0:02:02.4]} 16...
Bg6 {[%clk 0:02:27.8]} 17. c4 {[%clk 0:01:51.2]} 17... dxc4 {[%clk 0:01:58.3]}
18. Qd4 {[%clk 0:01:51.4]} 18... b5 {[%clk 0:01:53.9]} 19. Ne5 {[%clk 0:01:49]}
19... Bxe5 {[%clk 0:01:48.2]} 20. Qxe5 {[%clk 0:01:47.7]} 20... Re8 {[%clk
0:01:39.7]} 21. Qf4 {[%clk 0:01:39.5]} 21... Re6 {[%clk 0:01:24.9]} 22. Rad1
{[%clk 0:01:37.6]} 22... Qe7 {[%clk 0:01:23.4]} 23. Bd4 {[%clk 0:01:18]} 23...
Re8 {[%clk 0:01:14.9]} 24. Bxe4 {[%clk 0:00:58.3]} 24... Bxe4 {[%clk 0:01:07.5]}
25. Re3 {[%clk 0:00:48.3]} 25... Rf8 {[%clk 0:01:00.6]} 26. Qg3 {[%clk
0:00:46.7]} 26... Bd5 {[%clk 0:00:56.1]} 27. Rde1 {[%clk 0:00:45.8]} 27... Rxe3
{[%clk 0:00:46.5]} 28. Rxe3 {[%clk 0:00:46.7]} 28... Qg5 {[%clk 0:00:39.4]} 29.
Qe5 {[%clk 0:00:27.6]} 29... Qxe5 {[%clk 0:00:35.1]} 30. Rxe5 {[%clk 0:00:28]}
30... Rf3 {[%clk 0:00:26.9]} 31. Kh2 {[%clk 0:00:22.7]} 31... a5 {[%clk
0:00:27]} 32. Re7 {[%clk 0:00:20.5]} 32... g6 {[%clk 0:00:27.4]} 33. Rg7+ {[%clk
0:00:19.9]} 33... Kf8 {[%clk 0:00:27.9]} 34. Rxh7 {[%clk 0:00:20.2]} 34... b4
{[%clk 0:00:27.5]} 35. g5 {[%clk 0:00:17.8]} 35... c3 {[%clk 0:00:27]} 36. bxc3
{[%clk 0:00:17.7]} 36... bxc3 {[%clk 0:00:27.9]} 37. Rh8+ {[%clk 0:00:16.8]}
37... Kf7 {[%clk 0:00:27.7]} 38. Rh7+ {[%clk 0:00:15.9]} 38... Ke6 {[%clk
0:00:27.2]} 39. Bf6 {[%clk 0:00:14.2]} 39... c2 {[%clk 0:00:26.1]} 40. Re7+
{[%clk 0:00:14.6]} 40... Kd6 {[%clk 0:00:26]} 41. Re1 {[%clk 0:00:15.4]} 41...
Be6 {[%clk 0:00:21.4]} 42. Kg2 {[%clk 0:00:14.2]} 42... Ra3 {[%clk 0:00:17.4]}
43. Rc1 {[%clk 0:00:13.2]} 43... Bxh3+ {[%clk 0:00:17.4]} 44. Kh2 {[%clk
0:00:13]} 44... Bf5 {[%clk 0:00:18.3]} 45. Kg2 {[%clk 0:00:12.2]} 45... Rxa2
{[%clk 0:00:18.4]} 46. f3 {[%clk 0:00:12.8]} 46... Ra4 {[%clk 0:00:17.8]} 47.
Kf2 {[%clk 0:00:13.7]} 47... Rb4 {[%clk 0:00:17.6]} 48. Ke3 {[%clk 0:00:14.2]}
48... a4 {[%clk 0:00:17.6]} 49. Kd2 {[%clk 0:00:14]} 49... a3 {[%clk 0:00:18]}
50. Ra1 {[%clk 0:00:12.1]} 50... Rb1 {[%clk 0:00:17]} 0-1

[Event "*** Titled Tuesday Blitz"]
[Site "Chess.com"]
[Date "2020.10.27"]
[Round "9"]
[White "AniJak"]
[Black "RamyresCoelho"]
[Result "1-0"]
[WhiteElo "2283"]
[BlackElo "2085"]
[TimeControl "180+1"]
[EndTime "11:46:03 PDT"]
[Termination "AniJak won by checkmate"]

1. e4 {[%clk 0:03:00.9]} 1... c5 {[%clk 0:03:00]} 2. Nc3 {[%clk 0:02:57.6]} 2...
a6 {[%clk 0:02:58.7]} 3. g3 {[%clk 0:02:58.5]} 3... Nc6 {[%clk 0:02:58.6]} 4.
Bg2 {[%clk 0:02:58.4]} 4... d6 {[%clk 0:02:58.9]} 5. Nge2 {[%clk 0:02:55.7]}
5... Nf6 {[%clk 0:02:58.6]} 6. d4 {[%clk 0:02:55.1]} 6... cxd4 {[%clk
0:02:58.8]} 7. Nxd4 {[%clk 0:02:54.4]} 7... Bd7 {[%clk 0:02:59.3]} 8. O-O {[%clk
0:02:52.4]} 8... g6 {[%clk 0:02:58.1]} 9. h3 {[%clk 0:02:51.6]} 9... Bg7 {[%clk
0:02:58.3]} 10. Be3 {[%clk 0:02:51.1]} 10... Qc8 {[%clk 0:02:58.3]} 11. Kh2
{[%clk 0:02:50.4]} 11... O-O {[%clk 0:02:58.2]} 12. Qd2 {[%clk 0:02:49.5]} 12...
b5 {[%clk 0:02:57.4]} 13. a3 {[%clk 0:02:42.2]} 13... Ne5 {[%clk 0:02:55.9]} 14.
Qe2 {[%clk 0:02:39.2]} 14... Nc4 {[%clk 0:02:53.1]} 15. Bc1 {[%clk 0:02:36.2]}
15... Rb8 {[%clk 0:02:52.8]} 16. Rd1 {[%clk 0:02:28.8]} 16... Nxa3 {[%clk
0:02:46.6]} 17. Rxa3 {[%clk 0:02:27.4]} 17... b4 {[%clk 0:02:46.7]} 18. Rxa6
{[%clk 0:02:17.4]} 18... bxc3 {[%clk 0:02:46.6]} 19. bxc3 {[%clk 0:02:17]} 19...
Qxc3 {[%clk 0:02:46]} 20. Ra7 {[%clk 0:02:16.4]} 20... Rfd8 {[%clk 0:02:13.5]}
21. Bg5 {[%clk 0:02:05.3]} 21... h6 {[%clk 0:02:06]} 22. Be3 {[%clk 0:02:03.3]}
22... Rb2 {[%clk 0:01:50.8]} 23. Bc1 {[%clk 0:01:49]} 23... Rbb8 {[%clk
0:01:45.5]} 24. f4 {[%clk 0:01:41.8]} 24... Ng4+ {[%clk 0:01:39.5]} 25. hxg4
{[%clk 0:01:39.8]} 25... Bxd4 {[%clk 0:01:39.7]} 26. Ra3 {[%clk 0:01:39.7]}
26... Qc5 {[%clk 0:01:31.8]} 27. Rad3 {[%clk 0:01:39.1]} 27... Bg7 {[%clk
0:01:28.1]} 28. e5 {[%clk 0:01:39.4]} 28... Bb5 {[%clk 0:01:25.6]} 29. e6 {[%clk
0:01:33.4]} 29... f5 {[%clk 0:01:14.5]} 30. gxf5 {[%clk 0:01:28.2]} 30... gxf5
{[%clk 0:01:08.9]} 31. Qh5 {[%clk 0:01:22]} 31... Bxd3 {[%clk 0:01:05.9]} 32.
cxd3 {[%clk 0:01:22.3]} 32... Rb1 {[%clk 0:00:56.5]} 33. Qf7+ {[%clk 0:01:19.4]}
33... Kh8 {[%clk 0:00:56]} 34. Qxe7 {[%clk 0:01:19.6]} 34... Rc8 {[%clk
0:00:51.9]} 35. Qd7 {[%clk 0:01:12.4]} 35... Rxc1 {[%clk 0:00:39.6]} 36. Rxc1
{[%clk 0:01:11.4]} 36... Qxc1 {[%clk 0:00:39.5]} 37. e7 {[%clk 0:01:09]} 37...
Qc7 {[%clk 0:00:27.3]} 38. e8=Q+ {[%clk 0:01:07.5]} 38... Rxe8 {[%clk
0:00:19.5]} 39. Qxc7 {[%clk 0:01:07.5]} 39... Bf8 {[%clk 0:00:12.5]} 40. Qf7
{[%clk 0:01:07.1]} 40... Rd8 {[%clk 0:00:12.1]} 41. Qxf5 {[%clk 0:01:07.1]}
41... Bg7 {[%clk 0:00:11.4]} 42. Be4 {[%clk 0:01:07]} 42... Kg8 {[%clk
0:00:10.7]} 43. Bd5+ {[%clk 0:01:04]} 43... Kh8 {[%clk 0:00:10.5]} 44. Qg6
{[%clk 0:01:02.5]} 44... Rf8 {[%clk 0:00:05]} 45. f5 {[%clk 0:01:02.5]} 45...
Rf6 {[%clk 0:00:04.1]} 46. Qe8+ {[%clk 0:01:02.6]} 46... Bf8 {[%clk 0:00:03.2]}
47. g4 {[%clk 0:01:01.6]} 47... Kg7 {[%clk 0:00:03.5]} 48. Qd7+ {[%clk
0:01:00.5]} 48... Kh8 {[%clk 0:00:03.4]} 49. Kg3 {[%clk 0:00:56.1]} 49... h5
{[%clk 0:00:03.3]} 50. Qd8 {[%clk 0:00:55]} 50... Kg7 {[%clk 0:00:02.6]} 51. g5
{[%clk 0:00:53.5]} 51... Rxf5 {[%clk 0:00:01.9]} 52. Be4 {[%clk 0:00:51.2]}
52... Rf7 {[%clk 0:00:01.6]} 53. Qe8 {[%clk 0:00:47.5]} 53... Kg8 {[%clk
0:00:01.5]} 54. Bd5 {[%clk 0:00:45.6]} 54... Kh8 {[%clk 0:00:02.2]} 55. Qxf7
{[%clk 0:00:45.5]} 55... Bg7 {[%clk 0:00:01.8]} 56. Qg8# {[%clk 0:00:45.3]} 1-0

[Event "*** Titled Tuesday Blitz"]
[Site "Chess.com"]
[Date "2020.10.27"]
[Round "9"]
[White "WiktoriaPOL"]
[Black "HanSchut"]
[Result "0-1"]
[WhiteElo "2079"]
[BlackElo "2219"]
[TimeControl "180+1"]
[EndTime "11:46:03 PDT"]
[Termination "HanSchut won on time"]

1. c4 {[%clk 0:03:00.9]} 1... Nf6 {[%clk 0:02:56.5]} 2. Nc3 {[%clk 0:03:00.5]}
2... d5 {[%clk 0:02:56.9]} 3. cxd5 {[%clk 0:02:59.1]} 3... Nxd5 {[%clk
0:02:57.8]} 4. g3 {[%clk 0:02:56.5]} 4... c5 {[%clk 0:02:57.9]} 5. Bg2 {[%clk
0:02:56.7]} 5... Nc7 {[%clk 0:02:58.5]} 6. Nf3 {[%clk 0:02:55.5]} 6... Nc6
{[%clk 0:02:58.6]} 7. O-O {[%clk 0:02:47.2]} 7... e5 {[%clk 0:02:58.6]} 8. d3
{[%clk 0:02:43.2]} 8... Be7 {[%clk 0:02:55.5]} 9. a4 {[%clk 0:02:42.3]} 9... Be6
{[%clk 0:02:50.3]} 10. a5 {[%clk 0:02:39.1]} 10... O-O {[%clk 0:02:43.2]} 11.
Qa4 {[%clk 0:02:32]} 11... Rc8 {[%clk 0:02:41.3]} 12. Be3 {[%clk 0:02:16.5]}
12... f6 {[%clk 0:02:34.1]} 13. Rac1 {[%clk 0:02:12.5]} 13... Qd7 {[%clk
0:02:25]} 14. Nd2 {[%clk 0:02:04.7]} 14... Nd5 {[%clk 0:02:00.9]} 15. Nxd5
{[%clk 0:01:52.4]} 15... Bxd5 {[%clk 0:02:01.8]} 16. Bxc5 {[%clk 0:01:39.1]}
16... Bxg2 {[%clk 0:01:55.2]} 17. Kxg2 {[%clk 0:01:35]} 17... Qd5+ {[%clk
0:01:33.9]} 18. e4 {[%clk 0:01:29.9]} 18... Qxd3 {[%clk 0:01:20.2]} 19. Qb3+
{[%clk 0:01:23.7]} 19... Qxb3 {[%clk 0:01:18]} 20. Nxb3 {[%clk 0:01:24.6]} 20...
Bxc5 {[%clk 0:01:15.5]} 21. Rxc5 {[%clk 0:01:23.6]} 21... a6 {[%clk 0:01:12.8]}
22. Nd2 {[%clk 0:01:13.6]} 22... Rfd8 {[%clk 0:01:09.9]} 23. Nc4 {[%clk
0:01:04.8]} 23... Nd4 {[%clk 0:01:07]} 24. Rxc8 {[%clk 0:01:00.7]} 24... Rxc8
{[%clk 0:01:07.9]} 25. Nd6 {[%clk 0:00:43.9]} 25... Rc7 {[%clk 0:01:08]} 26. b4
{[%clk 0:00:32.6]} 26... Kf8 {[%clk 0:01:03.5]} 27. f4 {[%clk 0:00:15.9]} 27...
exf4 {[%clk 0:00:47.9]} 28. gxf4 {[%clk 0:00:14.9]} 28... Ke7 {[%clk 0:00:42.1]}
29. e5 {[%clk 0:00:14.3]} 29... fxe5 {[%clk 0:00:34.4]} 30. fxe5 {[%clk
0:00:15.2]} 30... Ke6 {[%clk 0:00:28.3]} 31. Ne8 {[%clk 0:00:11.1]} 31... Rc2+
{[%clk 0:00:24.2]} 32. Kg3 {[%clk 0:00:10.6]} 32... Kxe5 {[%clk 0:00:18.5]} 33.
Nxg7 {[%clk 0:00:10.2]} 33... Rc3+ {[%clk 0:00:16.8]} 34. Kg2 {[%clk 0:00:09.9]}
34... Rb3 {[%clk 0:00:12.7]} 35. Re1+ {[%clk 0:00:09.1]} 35... Kd5 {[%clk
0:00:12]} 36. Re7 {[%clk 0:00:05.8]} 36... Rxb4 {[%clk 0:00:11.5]} 37. Nh5
{[%clk 0:00:05.5]} 37... Kc4 {[%clk 0:00:10.6]} 38. Rxh7 {[%clk 0:00:04.8]}
38... Kd3 {[%clk 0:00:09.8]} 39. Rd7 {[%clk 0:00:04.4]} 39... Rb2+ {[%clk
0:00:09.4]} 40. Kg3 {[%clk 0:00:03.7]} 40... Rb5 {[%clk 0:00:10]} 41. Nf4+
{[%clk 0:00:03.4]} 41... Ke4 {[%clk 0:00:10.4]} 42. h4 {[%clk 0:00:02.8]} 42...
Nf5+ {[%clk 0:00:10.3]} 43. Kg4 {[%clk 0:00:02.5]} 43... Ne3+ {[%clk 0:00:11.2]}
44. Kg3 {[%clk 0:00:02.3]} 44... Re5 {[%clk 0:00:09.1]} 45. Ne2 {[%clk
0:00:01.9]} 45... Nd5 {[%clk 0:00:07.7]} 46. Nc1 {[%clk 0:00:01.3]} 46... Rf5
{[%clk 0:00:07.1]} 0-1